bitfinex/quotes_ETHUSD_20251021
["timestamp","ask_amount","ask_price","bid_price","bid_amount"]
[1761019275587,0.40705,3928.4,3928.2,3.00149522]
[1761019275906,0.40705,3928.4,3928.3,3.00143042]
[1761019276121,0.40705,3928.4,3928.3,3.12863042]
[1761019276303,0.40705,3928.4,3928.3,3.76179751]
[1761019276892,0.40705,3928.4,3928.3,4.29413381]
[1761019277096,0.40705,3928.4,3928.3,4.26867751]
[1761019278011,0.40705,3928.4,3928.3,3.76179751]
[1761019278215,0.40705,3928.4,3928.3,0.1272]
[1761019278414,0.40705,3928.4,3927.9,0.1272]
[1761019278591,0.1272,3928.3,3928.0,3.435]
[1761019278792,0.1272,3928.3,3928.0,3.8908]
[1761019279091,0.1272,3928.3,3928.0,3.435]
[1761019279990,0.40705,3928.4,3928.1,0.4558]
[1761019280227,0.40705,3928.4,3928.1,0.1272]
[1761019280816,0.40705,3928.4,3928.1,3.434]
[1761019280817,0.1272,3928.3,3928.1,3.434]
[1761019281135,0.1272,3928.3,3927.9,3.434]
[1761019281422,0.1272,3928.1,3927.9,3.434]
[1761019282631,0.1272,3928.1,3927.5,0.2322]
[1761019282925,0.1272,3928.1,3927.6,3.431]
[1761019284025,8.799985,3928.0,3926.7,0.4491]
[1761019284193,8.799985,3928.0,3927.1,0.1272]
[1761019284194,0.1272,3927.7,3927.1,0.1272]
[1761019284396,0.1272,3927.7,3927.2,3.427]
[1761019284622,6.111396,3927.8,3927.2,3.427]
[1761019284823,0.1272,3927.4,3927.2,3.427]
[1761019287602,0.001,3928.3,3927.3,0.47456278]
[1761019287805,0.1272,3928.0,3927.3,0.1272]
[1761019288016,15.693616,3928.2,3926.8,3.22785468]
[1761019288329,0.1272,3927.4,3927.1,2.54640005]
[1761019288533,0.1272,3927.4,3927.0,1.728]
[1761019288873,0.1272,3927.4,3927.1,2.54638416]
[1761019289137,0.1272,3927.4,3927.1,2.99549765]
[1761019289436,0.1272,3927.4,3927.1,0.4491]
[1761019289636,0.1272,3927.4,3926.9,3.422]
[1761019290084,0.2148,3927.5,3926.1,0.50688]
[1761019290209,0.1013,3927.3,3926.5,0.1272]
[1761019290530,0.1013,3927.3,3925.6,0.4511]
[1761019290705,0.1272,3926.5,3926.0,0.42]
[1761019291653,0.1272,3926.3,3925.6,0.1292]
[1761019291806,4.122551,3926.1,3925.6,0.002]
[1761019292004,1.728,3926.1,3925.6,0.002]
[1761019292205,10.514414,3925.9,3925.6,0.002]
[1761019292406,4.2753164,3925.7,3925.6,0.002]
[1761019292642,17.7967514,3925.7,3925.6,0.002]
[1761019292841,18.29538777,3925.7,3925.6,0.002]
[1761019293355,22.54105377,3925.7,3925.6,0.002]
[1761019293705,21.32792741,3925.7,3925.6,0.002]
[1761019293805,21.43517104,3925.7,3925.6,0.002]
[1761019294354,35.26846204,3925.7,3925.6,0.002]
[1761019294853,35.66810677,3925.7,3925.6,0.002]
[1761019295022,35.99460828,3925.7,3925.6,0.002]
[1761019295657,35.66810677,3925.7,3925.6,0.002]
[1761019296848,36.06786786,3925.7,3925.6,0.002]
[1761019297059,36.39436937,3925.7,3925.6,0.002]
[1761019297246,6.44436937,3925.7,3925.6,0.002]
[1761019297449,6.45334885,3925.7,3925.6,0.002]
[1761019300149,0.50688,3923.8,3922.2,0.691]
[1761019300355,2.54913136,3923.0,3922.2,0.2169]
[1761019300540,4.27724333,3922.8,3922.2,0.2169]
[1761019300740,18.065839,3922.7,3922.2,0.2169]
[1761019301080,15.605946,3922.7,3922.2,0.2169]
[1761019301233,14.273507,3922.7,3922.2,0.2169]
[1761019301447,1.728,3922.9,3922.2,0.691]
[1761019301646,4.775753,3922.8,3922.2,0.2169]
[1761019301854,7.32497178,3922.8,3922.2,0.2169]
[1761019302049,7.898367,3922.7,3922.2,0.2169]
[1761019302270,6.898367,3922.7,3922.2,0.2169]
[1761019302872,6.898367,3922.7,3922.2,0.691]
[1761019303053,1.728,3922.9,3922.2,0.2169]
[1761019303248,2.418316,3922.8,3922.3,0.4741]
[1761019303685,0.1272,3922.3,3922.2,0.2169]
[1761019304585,0.1272,3922.3,3922.2,0.691]
[1761019305654,0.1272,3922.3,3922.2,0.2169]
[1761019305854,9.383181,3922.2,3921.9,0.2169]
[1761019306099,0.1272,3921.9,3921.3,0.2169]
[1761019306390,0.1272,3921.9,3920.7,0.2169]
[1761019306391,0.1272,3921.3,3920.7,0.2169]
[1761019306590,1.728,3920.9,3919.8,0.2169]
[1761019306814,1.728,3921.1,3919.8,0.2169]
[1761019306815,1.728,3920.7,3919.9,0.4741]
[1761019307388,0.1272,3920.1,3919.9,0.4741]
[1761019307689,1.728,3920.5,3919.9,0.4741]
[1761019308187,3.459243,3920.4,3919.9,0.4741]
[1761019308379,1.728,3920.5,3919.9,0.4741]
[1761019309003,1.728,3920.5,3919.9,0.79831502]
[1761019309298,1.728,3920.5,3920.4,0.2169]
[1761019309504,0.40012264,3920.6,3920.5,2.55069506]
[1761019309717,0.57,3921.3,3920.8,2.5504862]
[1761019310021,2.83679,3921.3,3920.9,0.25504862]
[1761019310304,2.664789,3921.1,3920.6,0.4741]
[1761019311084,0.40004085,3921.4,3920.6,0.4741]
[1761019311284,1.01904085,3921.4,3921.3,0.2169]
[1761019311608,0.40004085,3921.4,3921.3,0.2169]
[1761019311911,0.1735,3922.4,3921.3,3.24117468]
[1761019312075,1.728,3922.0,3921.4,0.32411747]
[1761019312275,1.728,3921.8,3921.3,0.2169]
[1761019312475,1.728,3921.4,3920.8,0.4741]
[1761019312727,13.495858,3921.5,3920.8,0.4741]
[1761019312871,1.728,3921.4,3920.8,0.4741]
[1761019313181,1.728,3921.6,3920.8,0.4741]
[1761019313385,1.728,3921.6,3921.0,2.55036291]
[1761019313583,0.53103262,3922.4,3921.5,0.2169]
[1761019313927,0.63423262,3923.3,3921.6,2.57547939]
[1761019314079,10.712207,3923.1,3921.7,0.4741]
[1761019314430,3.653784,3923.1,3921.7,0.4741]
[1761019314572,1.728,3923.0,3921.7,0.4741]
[1761019314775,2.1278222,3922.8,3921.7,0.4741]
[1761019315009,11.962166,3922.5,3921.2,0.2169]
[1761019315180,6.327426,3922.4,3921.2,2.76712983]
[1761019315380,6.327426,3922.4,3921.3,3.34838934]
[1761019315580,6.327426,3922.4,3921.3,0.79822298]
[1761019315809,1.728,3922.2,3921.6,2.54996782]
[1761019316205,1.728,3922.2,3921.7,0.4741]
[1761019316546,1.728,3921.9,3921.3,0.4741]
[1761019316753,1.728,3921.9,3921.3,3.02426834]
[1761019316913,1.728,3921.9,3921.3,0.4741]
[1761019316914,3.151011,3921.8,3921.3,0.4741]
[1761019317217,3.151011,3921.8,3921.2,0.2169]
[1761019317424,1.728,3921.7,3921.2,0.2169]
[1761019317609,9.40456,3921.8,3921.2,0.2169]
[1761019317809,1.728,3921.7,3921.2,0.2169]
[1761019318215,0.1272,3921.2,3920.6,0.4741]
[1761019318414,0.1272,3920.7,3920.6,2.55063]
[1761019318656,0.1272,3920.7,3920.6,3.08245089]
[1761019318840,0.1272,3921.1,3921.0,2.5503698]
[1761019319145,0.1272,3921.5,3921.4,2.55010965]
[1761019319318,0.1272,3921.8,3921.2,0.1272]
[1761019319510,0.1272,3921.8,3921.5,2.55003911]
[1761019319712,0.1272,3921.8,3921.7,2.54991457]
[1761019320232,0.1272,3921.8,3921.7,3.02401457]
[1761019320442,0.1272,3922.2,3922.0,2.54969547]
[1761019320615,0.1272,3922.2,3921.8,0.4379]
[1761019320942,0.1272,3922.2,3922.1,2.77535452]
[1761019321143,0.1272,3922.2,3922.1,3.78956206]
[1761019321350,0.39995513,3922.6,3922.5,2.54939451]
[1761019321653,0.1272,3922.5,3922.2,0.4379]
[1761019321949,0.1272,3922.5,3922.1,0.80200754]
[1761019322149,0.1272,3922.2,3922.1,2.77533962]
[1761019322453,0.1272,3922.2,3921.8,3.4]
[1761019322621,0.1272,3922.2,3922.1,0.2257]
[1761019323327,0.1272,3922.2,3921.9,2.54976948]
[1761019323534,0.1272,3922.2,3922.1,2.54965452]
[1761019323731,0.1272,3922.2,3922.1,2.77535452]
[1761019323932,0.1272,3922.2,3922.1,3.21325452]
[1761019324156,0.1272,3922.2,3921.5,0.4379]
[1761019324360,0.56998279,3922.9,3921.5,0.4379]
[1761019324361,0.1272,3921.9,3921.5,2.98789736]
[1761019324566,0.1272,3921.9,3921.5,1.00442935]
[1761019324763,0.1829,3921.9,3921.0,0.4379]
[1761019324991,0.1272,3921.2,3921.0,0.4379]
[1761019325487,0.1272,3921.2,3920.8,0.002]
[1761019325865,0.1272,3920.9,3920.8,0.002]
[1761019326983,0.1272,3920.9,3920.8,2.99039989]
[1761019327308,0.1272,3921.7,3921.6,2.549949]
[1761019327458,0.1272,3922.0,3921.9,2.54978454]
[1761019327974,0.1272,3922.2,3921.9,0.4379]
[1761019328382,0.1272,3922.2,3921.9,2.98765182]
[1761019328580,0.1272,3922.2,3922.1,2.77535452]
[1761019328983,0.1272,3922.2,3922.1,0.6636]
[1761019329161,0.1272,3922.2,3922.1,0.2257]
[1761019329361,0.1272,3922.2,3922.1,0.6636]
[1761019329580,0.1272,3922.2,3922.1,3.21325452]
[1761019329786,0.1272,3922.2,3922.1,0.6636]
[1761019330570,0.1272,3922.2,3922.1,0.2257]
[1761019330891,0.1272,3922.2,3921.7,0.4379]
[1761019331095,0.1272,3922.2,3921.4,3.398]
[1761019331096,1.728,3922.2,3921.4,3.398]
[1761019331259,0.50021653,3922.5,3920.8,0.55610268]
[1761019331260,0.1272,3921.4,3920.8,0.002]
[1761019331459,0.1918,3921.5,3920.8,0.002]
[1761019331873,20.861192,3921.4,3920.8,0.002]
[1761019332098,1.728,3921.1,3920.8,0.002]
[1761019332301,17.15006784,3920.9,3920.8,0.002]
[1761019332514,16.90532184,3920.9,3920.8,0.002]
[1761019332810,17.00662184,3920.9,3920.8,0.002]
[1761019333003,21.82194484,3920.9,3920.8,0.002]
[1761019333199,20.36409284,3920.9,3920.8,0.002]
[1761019333510,21.32980546,3920.9,3920.8,0.002]
[1761019333713,21.65630697,3920.9,3920.8,0.002]
[1761019333882,20.97227284,3920.9,3920.8,0.002]
[1761019334077,34.88661484,3920.9,3920.8,0.002]
[1761019334282,35.57064897,3920.9,3920.8,0.002]
[1761019335112,35.58082391,3920.9,3920.8,0.002]
[1761019335413,5.58082391,3920.9,3920.8,0.002]
[1761019335615,1.728,3919.0,3918.4,7.9760675]
[1761019335911,14.700164,3919.0,3918.4,7.9760675]
[1761019336112,23.48307034,3919.0,3918.4,7.9760675]
[1761019336314,23.48307034,3919.0,3917.9,2.15650826]
[1761019336315,0.05,3918.0,3917.9,2.15650826]
[1761019336514,14.085735,3918.0,3917.9,1.98780826]
[1761019336713,5.472045,3918.0,3917.9,1.98780826]
[1761019336914,7.299945,3918.0,3917.9,1.98780826]
[1761019337082,37.81622261,3918.0,3917.9,1.98780826]
[1761019337283,35.77578,3918.0,3917.9,0.96963887]
[1761019337488,38.32810261,3918.0,3917.9,0.96963887]
[1761019338882,3.05952837,3917.5,3917.4,2.18922176]
[1761019339127,4.78752837,3917.5,3917.4,2.18922176]
[1761019339337,4.78752837,3917.5,3914.8,0.00449761]
[1761019339338,3.06044094,3916.1,3914.8,0.00449761]
[1761019339493,3.06044094,3916.1,3913.0,2.48364325]
[1761019339494,0.50688,3914.3,3911.7,0.75819677]
[1761019339696,0.50688,3914.3,3909.6,0.75757472]
[1761019339697,1.728,3910.1,3909.6,0.75757472]
[1761019339897,1.728,3910.1,3907.3,0.76906808]
[1761019339898,0.1419,3909.7,3907.3,0.76906808]
[1761019340103,0.1419,3909.7,3908.2,0.65664398]
[1761019340104,1.728,3909.2,3908.2,0.65664398]
[1761019340345,1.728,3909.2,3905.8,2.97434573]
[1761019340346,2.55823832,3909.0,3905.0,2.0]
[1761019340495,2.55823832,3909.0,3900.4,3.56724421]
[1761019340496,0.52769457,3903.5,3901.1,0.21793518]
[1761019340702,3.10954,3900.4,3900.0,12.47529621]
[1761019341009,1.728,3901.3,3900.1,0.388]
[1761019341198,19.484112,3901.3,3900.0,9.11575621]
[1761019341526,5.780845,3901.1,3900.0,8.34837503]
[1761019341841,19.484112,3901.5,3900.0,3.23250048]
[1761019342140,18.314775,3901.4,3900.0,3.23250048]
[1761019342349,0.05,3902.8,3900.1,0.32325005]
[1761019342636,3.921,3904.3,3900.1,0.32325005]
[1761019342637,0.05,3902.4,3900.1,0.32325005]
[1761019342834,4.60394,3900.1,3900.0,3.23250048]
[1761019342995,0.767381,3904.4,3900.1,0.6694]
[1761019343196,8.056072,3905.7,3904.3,0.2314]
[1761019343396,4.078,3905.7,3902.1,1.728]
[1761019343598,0.05,3906.8,3905.5,0.2314]
[1761019343823,2.575,3906.7,3905.5,0.2314]
[1761019344132,2.93082063,3906.7,3903.3,1.401812]
[1761019344317,2.93082063,3906.7,3902.6,0.2314]
[1761019344318,0.099,3906.6,3903.5,1.401812]
[1761019344522,18.849681,3903.4,3899.2,0.05]
[1761019344731,0.02561752,3903.3,3900.2,0.25637738]
[1761019344900,0.02561752,3903.3,3900.1,2.32189041]
[1761019344901,0.02561752,3903.8,3900.1,2.29625005]
[1761019345104,0.05,3902.7,3900.4,4.750424]
[1761019345299,0.05,3902.7,3900.2,0.438]
[1761019345300,0.7713857,3905.5,3903.7,0.2314]
[1761019345610,18.849681,3907.3,3903.8,0.219]
[1761019345812,18.849681,3907.1,3903.8,0.438]
[1761019346321,18.849681,3907.1,3903.9,0.23561541]
[1761019346521,2.55846049,3908.7,3903.9,0.23561541]
[1761019346522,4.29,3909.3,3907.0,0.2314]
[1761019346744,0.099,3909.9,3907.1,0.438]
[1761019346745,7.353168,3909.1,3907.1,0.438]
[1761019346944,2.55767558,3909.8,3907.2,0.02559377]
[1761019347246,4.250054,3910.5,3907.3,1.98159312]
[1761019347446,4.295,3911.6,3907.4,3.894]
[1761019347651,4.295,3911.6,3907.4,2.166]
[1761019347864,4.295,3911.6,3907.5,0.46359181]
[1761019348065,4.295,3911.6,3907.9,1.728]
[1761019348268,2.55620056,3912.1,3909.1,2.55808011]
[1761019348567,4.69501444,3912.4,3909.2,0.6694]
[1761019348729,1.03,3911.1,3909.2,0.2314]
[1761019348931,2.141803,3910.5,3909.1,0.438]
[1761019349132,0.50505,3910.6,3907.6,0.438]
[1761019349338,6.226634,3909.8,3907.6,0.438]
[1761019349539,2.55799431,3909.4,3907.6,0.438]
[1761019349790,18.849681,3909.1,3907.0,0.2314]
[1761019350072,0.099,3909.7,3907.0,0.2314]
[1761019350073,2.55841349,3908.7,3907.0,0.6694]
[1761019350248,4.287,3908.6,3905.1,0.02560753]
[1761019350435,6.950213,3909.3,3906.2,0.438]
[1761019350635,18.849681,3909.1,3906.2,0.438]
[1761019351076,8.682579,3909.1,3906.3,0.02559967]
[1761019351277,2.55886046,3908.0,3906.2,0.438]
[1761019351449,2.55915533,3907.6,3906.2,0.438]
[1761019351650,0.1272,3906.7,3906.2,0.438]
[1761019351852,4.288,3908.1,3906.2,0.438]
[1761019352051,4.288,3908.1,3904.7,0.6694]
[1761019352052,2.5598755,3906.5,3905.3,0.4561]
[1761019352251,1.728,3908.0,3905.3,0.4561]
[1761019352252,4.28765827,3906.8,3905.3,0.3463392]
[1761019352462,2.55986075,3906.5,3905.3,0.3463392]
[1761019352663,1.728,3906.2,3904.7,0.2314]
[1761019352945,1.728,3905.8,3904.7,0.2314]
[1761019353272,2.5602919,3905.9,3904.7,0.2314]
[1761019353477,2.56030172,3905.8,3904.7,0.2314]
[1761019353675,2.56084801,3905.0,3903.7,0.2314]
[1761019353839,4.558466,3904.7,3903.7,0.2314]
[1761019354039,2.56155922,3903.9,3901.4,2.56317437]
[1761019354258,6.472773,3904.2,3902.5,0.4561]
[1761019354457,3.837407,3904.4,3902.5,0.4561]
[1761019354657,3.753771,3904.5,3902.5,0.4561]
[1761019354870,18.849681,3906.5,3903.2,2.56197554]
[1761019355068,1.728,3906.2,3902.6,0.02562394]
[1761019355289,13.17036,3906.3,3902.6,0.02562394]
[1761019355290,2.56051589,3905.5,3903.1,0.50688]
[1761019355592,4.274,3905.4,3902.7,0.4561]
[1761019355756,5.243103,3905.0,3902.8,0.4561]
[1761019355959,2.56114739,3904.5,3901.8,0.2141]
[1761019356177,1.728,3904.7,3900.8,0.2314]
[1761019356178,0.08011981,3902.3,3900.8,0.2314]
[1761019356391,0.08011981,3902.3,3900.9,0.4561]
[1761019356767,1.728,3902.1,3900.9,0.4561]
[1761019356967,1.728,3901.9,3899.5,3.85572121]
[1761019357194,2.56378243,3900.5,3899.5,3.39962121]
[1761019357397,1.728,3900.3,3899.5,3.39962121]
[1761019357559,2.940074,3900.1,3899.5,3.39962121]
[1761019357911,18.849681,3901.3,3900.0,3.23450048]
[1761019358195,2.078779,3902.2,3900.2,2.56397107]
[1761019358395,18.849681,3902.0,3900.0,3.23450048]
[1761019358690,4.27,3902.5,3900.0,3.23450048]
[1761019358691,18.849681,3901.5,3900.0,3.23450048]
[1761019358892,18.849681,3901.3,3900.0,3.23450048]
[1761019359062,1.728,3901.2,3900.0,3.23450048]
[1761019359261,0.099,3901.5,3900.0,3.23450048]
[1761019359503,1.728,3901.2,3900.0,3.23450048]
[1761019359822,2.56403681,3900.1,3900.0,3.19845548]
[1761019360095,2.56403681,3900.1,3899.5,3.39962121]
[1761019360096,23.14204657,3899.6,3899.5,3.39962121]
[1761019360258,23.20329457,3899.6,3899.5,3.39962121]
[1761019360462,23.74692657,3899.6,3899.5,3.39962121]
[1761019360809,23.14270434,3898.6,3898.5,2.81535167]
[1761019360964,3.07210073,3898.3,3898.2,0.86853649]
[1761019361165,5.658058,3898.3,3898.2,0.31853649]
[1761019361385,4.304,3898.6,3898.2,0.26853649]
[1761019361588,4.644486,3898.5,3898.2,0.21853649]
[1761019361812,17.46514,3898.3,3898.2,0.21853649]
[1761019362119,4.304,3898.6,3898.2,0.21853649]
[1761019362320,4.304,3898.6,3898.2,0.52345283]
[1761019362523,1.731,3899.7,3898.2,0.06735283]
[1761019362723,2.682576,3899.5,3898.2,0.06735283]
[1761019362923,0.51421504,3901.1,3898.3,0.4561]
[1761019363123,0.51421504,3901.1,3898.4,0.02565154]
[1761019363293,5.975596,3901.0,3898.4,0.53253154]
[1761019363493,2.67568,3901.0,3898.5,0.6702]
[1761019363902,4.103,3901.4,3898.7,0.50688]
[1761019364203,4.103,3901.4,3898.9,0.50688]
[1761019364402,4.324,3902.1,3899.0,0.0256476]
[1761019364722,2.8656,3902.0,3899.4,0.50688]
[1761019364923,0.05,3903.0,3900.6,2.56365567]
[1761019365231,3.039955,3902.4,3899.5,0.4561]
[1761019365533,3.039955,3902.4,3897.3,15.36141936]
[1761019365534,3.039955,3902.4,3898.7,0.4561]
[1761019365734,1.728,3901.2,3898.7,0.4561]
[1761019365898,1.728,3901.0,3898.7,0.4561]
[1761019366096,0.099,3902.2,3898.7,3.02101095]
[1761019366397,1.728,3901.8,3898.7,0.4561]
[1761019366637,1.728,3901.4,3898.8,0.4561]
[1761019366924,1.728,3901.0,3898.8,0.4561]
[1761019367093,4.323,3900.9,3898.8,0.4561]
[1761019367293,18.849681,3901.7,3898.8,0.4561]
[1761019367492,4.317,3901.6,3898.8,0.4561]
[1761019367722,1.728,3901.4,3898.8,0.4561]
[1761019367932,0.099,3902.1,3898.8,0.4561]
[1761019367933,2.13005828,3901.2,3898.8,0.4561]
[1761019368127,2.043159,3901.1,3898.8,0.4561]
[1761019368294,0.40207462,3900.7,3898.8,0.4561]
[1761019368500,3.155953,3900.6,3898.8,0.4561]
[1761019368697,1.728,3900.3,3898.3,0.003]
[1761019368927,1.728,3899.6,3898.3,0.003]
[1761019369101,1.728,3899.2,3898.3,0.003]
[1761019369320,1.728,3898.8,3898.3,0.003]
[1761019369747,4.311,3899.1,3898.3,0.003]
[1761019369933,1.728,3898.8,3898.3,0.003]
[1761019370128,4.311,3899.1,3898.3,0.003]
[1761019370129,3.757091,3899.0,3898.3,0.003]
[1761019370326,18.849681,3900.0,3898.3,0.003]
[1761019370630,1.728,3899.5,3898.3,0.003]
[1761019370830,1.728,3899.1,3898.3,0.003]
[1761019371045,4.305,3899.0,3898.3,0.003]
[1761019371239,18.849681,3898.9,3898.3,0.003]
[1761019372159,1.728,3899.2,3898.3,0.003]
[1761019372444,1.728,3899.6,3898.5,0.2141]
[1761019372613,2.054367,3899.7,3898.5,0.2141]
[1761019372815,5.92192705,3903.3,3898.5,0.2141]
[1761019372816,0.47887462,3900.7,3898.5,0.2141]
[1761019373054,0.128,3899.4,3898.8,0.128]
[1761019373256,0.128,3899.4,3899.3,2.56456287]
[1761019373624,0.40207462,3900.7,3899.3,0.15364562]
[1761019373819,0.128,3900.3,3899.7,2.56429981]
[1761019374018,0.128,3900.3,3899.6,0.128]
[1761019374230,0.128,3900.3,3900.2,2.56397107]
[1761019374436,0.128,3900.7,3900.2,0.4561]
[1761019374649,0.40201185,3902.2,3900.3,3.02000085]
[1761019374819,0.128,3901.4,3900.6,0.128]
[1761019375229,0.96093501,3902.7,3900.7,0.4561]
[1761019375548,11.396183,3902.4,3900.7,0.4561]
[1761019375774,16.121256,3902.6,3900.7,0.4561]
[1761019376049,0.128,3901.1,3900.7,0.4561]
[1761019376253,10.774423,3903.2,3900.7,0.4561]
[1761019376456,0.40191322,3903.0,3901.0,0.4561]
[1761019376750,5.127474,3902.9,3901.0,0.4561]
[1761019376954,0.40205657,3902.6,3901.8,2.56290181]
[1761019377156,0.40205657,3902.6,3901.0,0.4561]
[1761019377453,0.40205657,3902.6,3901.1,0.4561]
[1761019377755,0.40205657,3902.6,3901.2,2.56331385]
[1761019377960,0.40205657,3902.6,3901.1,0.6702]
[1761019377961,0.40205657,3902.6,3901.3,0.4561]
[1761019378331,0.40205657,3902.6,3901.3,3.01933282]
[1761019378532,0.40205657,3902.6,3901.4,0.4561]
[1761019378756,0.40205657,3902.6,3901.5,2.56308398]
[1761019378959,0.40205657,3902.6,3901.4,0.4561]
[1761019379159,0.40205657,3902.6,3901.5,2.56311674]
[1761019379453,0.40205657,3902.6,3901.6,0.4561]
[1761019379663,0.40205657,3902.6,3902.0,2.56278037]
[1761019379822,2.36536508,3903.7,3901.1,0.2141]
[1761019380024,1.728,3903.3,3901.7,0.4561]
[1761019380234,2.903669,3903.5,3901.8,0.02562919]
[1761019380422,6.422492,3903.5,3901.7,0.4561]
[1761019380623,11.148148,3903.3,3901.1,0.2141]
[1761019380832,1.728,3902.5,3900.2,0.4475]
[1761019381031,5.820274,3902.2,3900.2,0.4475]
[1761019381233,2.56272263,3902.1,3900.2,0.4475]
[1761019381432,1.728,3901.9,3900.2,0.4475]
[1761019381620,8.177204,3902.0,3900.2,0.4475]
[1761019381621,5.422364,3901.6,3900.2,0.4475]
[1761019381843,5.422364,3901.6,3898.4,0.002]
[1761019381844,1.728,3901.8,3899.3,0.2205]
[1761019382029,1.728,3900.6,3898.8,0.4475]
[1761019382236,4.246,3901.1,3898.8,0.38912111]
[1761019382424,1.728,3901.7,3898.9,2.56482597]
[1761019382625,1.75366577,3901.6,3900.5,2.56371705]
[1761019382826,6.985226,3901.5,3898.8,4.246]
[1761019383026,1.728,3901.2,3898.8,4.246]
[1761019383262,6.154007,3900.8,3898.8,4.246]
[1761019383560,1.75366577,3900.7,3898.8,4.246]
[1761019383758,4.238,3900.8,3898.9,2.56482597]
[1761019383962,1.728,3902.6,3898.3,0.003]
[1761019383963,0.02566577,3900.7,3898.3,0.003]
[1761019384146,1.728,3900.3,3898.3,0.003]
[1761019384373,1.728,3900.0,3898.3,0.003]
[1761019384577,0.047,3898.5,3898.3,0.003]
[1761019384755,22.38950977,3898.5,3898.3,0.003]
[1761019384951,18.030844,3898.5,3898.3,0.003]
[1761019385152,21.50372,3898.5,3898.3,0.003]
[1761019385360,8.260915,3898.3,3898.2,0.0626288]
[1761019385562,10.02806,3898.3,3898.2,0.0626288]
[1761019385772,10.12706,3898.3,3898.2,0.0626288]
[1761019385978,14.36106,3898.3,3898.2,0.0626288]
[1761019386181,14.36106,3898.3,3897.5,2.45378354]
[1761019386182,3.07256144,3897.6,3897.5,2.45378354]
[1761019386386,6.296846,3897.6,3897.5,2.45378354]
[1761019386713,23.24136244,3897.6,3897.5,2.45378354]
[1761019386906,29.72124244,3897.6,3897.5,1e-08]
[1761019387204,29.72124244,3897.6,3895.6,3.6613292]
[1761019387205,21.084561,3896.7,3896.6,2.3449022]
[1761019387373,27.89683502,3896.7,3896.6,2.3449022]
[1761019387569,28.39639796,3896.7,3896.6,2.3449022]
[1761019387769,17.27190194,3896.7,3896.6,2.3449022]
[1761019388033,14.98859694,3896.7,3896.6,2.3449022]
[1761019388156,0.40256294,3896.7,3896.6,2.3449022]
[1761019388356,2.13056294,3896.7,3896.6,2.3449022]
[1761019388600,6.38256294,3896.7,3896.6,2.3449022]
[1761019388903,5.83190694,3896.7,3896.6,2.3449022]
[1761019389219,7.89130096,3896.7,3896.6,0.359839]
[1761019389361,18.849681,3896.6,3895.6,3.6613292]
[1761019389703,21.41628435,3896.2,3896.1,3.60233889]
[1761019389913,16.66664,3896.2,3896.1,3.60233889]
[1761019390086,7.323661,3896.2,3896.1,3.60233889]
[1761019390391,9.096204,3896.2,3896.1,3.60233889]
[1761019390574,9.093204,3896.2,3896.1,3.60233889]
[1761019390777,1.728,3896.2,3896.1,3.60233889]
[1761019390976,0.04866861,3898.0,3896.1,3.60233889]
[1761019390977,1.734,3897.6,3896.1,3.60233889]
[1761019391310,0.04866861,3898.0,3896.2,0.47316603]
[1761019391516,0.04866861,3898.0,3896.3,0.53254537]
[1761019391712,6.210538,3897.8,3896.2,0.4475]
[1761019392013,6.779649,3897.5,3896.1,3.60233889]
[1761019392175,4.27366577,3897.4,3896.1,3.60233889]
[1761019392503,0.02566577,3899.4,3896.2,0.4475]
[1761019392708,6.793402,3899.8,3896.6,2.56633988]
[1761019392860,18.849681,3899.6,3896.3,0.50688]
[1761019393059,2.56377945,3900.5,3896.2,0.4475]
[1761019393060,3.591358,3899.4,3896.7,0.50688]
[1761019393369,3.591358,3899.4,3896.4,4.13016471]
[1761019393370,2.627713,3899.2,3896.8,0.4475]
[1761019393572,0.02566577,3899.1,3897.1,0.50688]
[1761019393772,4.246,3899.2,3897.0,4.246]
[1761019393973,0.02566577,3900.6,3897.4,0.50688]
[1761019394171,0.40220413,3899.6,3898.4,0.50688]
[1761019394494,0.12830501,3901.4,3899.5,2.56443133]
[1761019394663,5.063504,3901.2,3899.6,0.4475]
[1761019394864,0.02566577,3901.1,3899.6,0.4475]
[1761019395073,0.40211011,3901.3,3899.7,0.53252299]
[1761019395274,0.40211011,3901.3,3900.7,2.56358278]
[1761019395472,1.734,3903.7,3900.3,2.56390534]
[1761019395676,0.40195145,3902.4,3900.5,0.50688]
[1761019395876,0.40195145,3902.4,3900.8,0.50688]
[1761019396076,9.306616,3903.7,3902.3,0.2205]
[1761019396299,0.1431,3904.8,3902.3,0.2205]
[1761019396300,0.40186621,3903.1,3902.3,0.2205]
[1761019396504,0.40186621,3903.1,3902.3,0.668]
[1761019396505,0.128,3902.4,3902.3,0.668]
[1761019397091,0.40186621,3903.1,3902.3,0.668]
[1761019397092,0.128,3902.7,3902.3,0.668]
[1761019397278,0.128,3903.0,3902.5,2.56245996]
[1761019397477,0.128,3903.0,3902.6,0.4388]
[1761019397680,0.128,3903.3,3903.1,2.56204007]
[1761019397999,0.128,3903.5,3903.2,0.4388]
[1761019398165,0.128,3903.5,3902.6,2.56235065]
[1761019398166,10.818046,3904.6,3902.3,0.2205]
[1761019398366,0.02566577,3904.5,3902.4,0.4388]
[1761019398561,6.655224,3904.4,3902.4,0.4388]
[1761019398763,0.02566577,3904.3,3902.5,0.50688]
[1761019398988,10.125503,3904.3,3902.4,0.4388]
[1761019399203,0.02566577,3904.2,3902.5,2.56245996]
[1761019399401,1.439,3904.7,3902.5,0.50688]
[1761019399567,4.692294,3904.5,3902.8,2.56222909]
[1761019399768,0.02566577,3904.4,3903.1,2.56204583]